Cogmind - Beta 10.2 @@@ ROGUE MODE // 2021.11.17 @ 22:11:13 Player: Grimrest Result: Destroyed by S-10 Pest with Light Assault Rifle Performance ------------- Evolutions (0) 0 Regions Visited (2) 400 Robots Destroyed (22) 110 Value Destroyed (530) 530 Prototype IDs (0) 0 Alien Tech Used (0) 0 Bonus (0) 0 TOTAL SCORE: 1040 Bonus ------- None Cogmind --------- Core Integrity 0/250 Matter 198/300 Energy 100/100 System Corruption 1% Temperature Cool (0) Movement Rolling (110) Ox1 Location -10/Mines Parts ------- > --- POWER (1) -------- (None) > --- PROPULSION (2) --- Light Treads Compact Wheel > --- UTILITY (2) ------ Medium Storage Unit Medium Storage Unit > --- WEAPON (2) ------- Autogun > --- INVENTORY (12) --- Light Ion Engine Light Treads Aluminum Leg Sensor Array Hacking Suite EM Pulse Gun Assault Rifle Autogun Autogun Peak State ------------ > --- POWER ------------ Ion Engine > --- PROPULSION ------- Light Treads Wheel > --- UTILITY ---------- Medium Storage Unit Medium Storage Unit > --- WEAPON ----------- Autogun Autogun > --- INVENTORY -------- Light Ion Engine Light Treads Light Treads Aluminum Leg Compact Wheel Sensor Array Hacking Suite EM Pulse Gun EM Shotgun Assault Rifle Grenade Launcher [Rating: 10] Favorites ----------- Power Ion Engine Engine Ion Engine Propulsion Light Treads Treads Light Treads Wheel Wheel Utility Medium Storage Unit Storage Medium Storage Unit Weapon Autogun Energy Gun EM Pulse Gun Ballistic Gun Autogun Launcher Grenade Launcher Build | -11 -10 -10 ------- Run | Scr Mat Min Slots Evolved . | . . . Power . | . . . Propulsion . | . . . Utility . | . . . Weapon . | . . . Parts Attached 26 | 9 14 3 Power 5 | 4 1 . Engine 5 | 4 1 . Core . | . . . Reactor . | . . . Propulsion 6 | 2 4 . Treads 3 | 1 2 . Leg . | . . . Wheel 3 | 1 2 . Hover . | . . . Flight . | . . . Utility 3 | 1 2 . Device . | . . . Storage 3 | 1 2 . Processor . | . . . Hackware . | . . . Protection . | . . . Artifact . | . . . Weapon 12 | 2 7 3 Energy Gun 2 | . 2 . Energy Cannon . | . . . Ballistic Gun 8 | 2 5 1 Ballistic Cannon . | . . . Launcher 2 | . . 2 Special Weapon . | . . . Impact Weapon . | . . . Slashing Weapon . | . . . Piercing Weapon . | . . . Special Melee Weapon . | . . . Unidentified Prototypes . | . . . Parts Lost 3 | . 1 2 Power 2 | . 1 1 Propulsion . | . . . Utility . | . . . Weapon 1 | . . 1 Highest Loss Streak 2 | . 1 2 Average Slot Usage (%) 97 | . 98 88 Engine 13 | . 14 8 Treads 13 | . 13 14 Wheel 13 | . 13 14 Storage 27 | . 27 28 Energy Gun 5 | . 5 . Ballistic Gun 21 | . 21 19 Naked Turns . | . . . Heaviest Build 27 | 9 27 27 Greatest Support 20 | 20 20 16 Greatest Overweight (x) 8 | . 8 1 Average Overweight (x) 1 | . 1 1 Largest Inventory Capacity 12 | 6 12 12 Average Capacity 11 | 4 11 12 Most Carried 12 | 4 12 9 Average Carried 8 | 2 8 9 Final Capacity 12 | 6 12 12 Final Carried 9 | 3 9 9 Class Distribution -------------------- 100% | Mutant Dominant Class ---------------- Mutant | -10/Materials Mutant | -10/Mines Resources | -11 -10 -10 ----------- Run | Scr Mat Min Matter Collected 648 | 220 428 . Remotely . | . . . Salvage Created 626 | . 615 11 Parts 42 | . 41 1 Haulers Intercepted . | . . . Recyclers Shooed 1 | . 1 . Parts Field Recycled . | . . . Retrieved Matter . | . . . Parts Self-Destructed . | . . . Prevented . | . . . Kills | -11 -10 -10 ------- Run | Scr Mat Min Combat Hostiles Destroyed 17 | . 13 4 Guns 13 | . 13 . AOE 4 | . . 4 Classes Destroyed 6 | . 5 1 Builder 2 | . 2 . Operator 2 | . 2 . Watcher 2 | . 2 . Swarmer 6 | . 3 3 Grunt 10 | . 10 . Assembled 1 | . . 1 Best Kill Streak 3 | . 3 3 Combat Bots Only 3 | . 3 3 Max Kills in Single Turn 2 | . 1 2 Gunslinging . | . . . Exploded 2 | . . 2 Melee . | . . . Uniques/NPCs Destroyed . | . . . Combat | -11 -10 -10 -------- Run | Scr Mat Min Damage Taken 1173 | . 745 428 Core 255 | . 134 121 Absorbed by Shields . | . . . Core Remaining (%) 100 | 100 . . Volleys Fired 77 | . 73 4 Largest 2 | . 2 2 Hottest 65 | . 65 53 Shots Fired 153 | . 146 7 Gun 150 | . 146 4 Cannon . | . . . Launcher 3 | . . 3 Special . | . . . Kinetic 112 | . 108 4 Thermal . | . . . Explosive 3 | . . 3 Electromagnetic 38 | . 38 . Robot Hit Streak 13 | . 13 1 Robot Miss Streak 10 | . 10 2 Penetration Max . | . . . Secondary Targets . | . . . Shots Hit Robots 83 | . 82 1 Core Hits 44 | . 32 12 Critical Hits 1 | . 1 . Critical Kills . | . . . Critical Parts Destroyed 1 | . 1 . Melee Attacks . | . . . Impact . | . . . Slashing . | . . . Piercing . | . . . Sneak Attacks . | . . . Combat Hostiles . | . . . Follow-up Attacks . | . . . Damage Inflicted 1375 | . 1049 326 Guns 1007 | . 1007 . Cannons . | . . . Explosions 368 | . 42 326 Melee . | . . . Ramming . | . . . Kinetic 650 | . 650 . Thermal 42 | . 42 . Explosive 326 | . . 326 Electromagnetic 357 | . 357 . Impact . | . . . Slashing . | . . . Piercing . | . . . Highest Corruption 1 | . 1 1 Average Corruption 1 | . 1 1 Corruption Purged . | . . . Overload Shots . | . . . Overflow Damage . | . . . Projectiles . | . . . Explosions . | . . . Melee . | . . . Knockbacks . | . . . Impact . | . . . Kinetic . | . . . Secondary . | . . . Self-Inflicted Damage 21 | . . 21 Shots 1 | . . 1 Rammed 1 | . 1 . Targets Rammed 1 | . 1 . Kicked . | . . . Crushed . | . . . Highest Temperature 104 | . 104 12 Average Temperature 26 | . 27 8 Received Heat Transfer 268 | . 228 40 Siege Activations . | . . . Robots Corrupted . | . . . Combat Hostiles . | . . . Parts Fried 2 | . 2 . Impact Corruptions . | . . . Robots Melted . | . . . Combat Hostiles . | . . . Parts Melted . | . . . Heat Transferred 50 | . 50 . Parts Sabotaged . | . . . Parts Stolen . | . . . Parts Stripped . | . . . Power Chain Reactions 1 | . 1 . Missiles Intercepted . | . . . Alert | -11 -10 -10 ------- Run | Scr Mat Min Peak Influence 214 | . 214 94 Initial 24 | . . 24 Average 76 | . 80 84 Maximum Alert Level 1 | . 1 . Low Security (%) 99 | 100 99 100 Level 1 . | . . . Level 2 . | . . . Level 3 . | . . . Level 4 . | . . . Level 5 . | . . . High Security . | . . . Max Security . | . . . Squads Dispatched 3 | . 3 . Investigation 1 | . 1 . Extermination . | . . . Reinforcement 2 | . 2 . Assault . | . . . Garrison . | . . . Intercept . | . . . Construction Impeded . | . . . Haulers Reinforced . | . . . Stealth | -11 -10 -10 --------- Run | Scr Mat Min Distress Signals 2 | . 2 . Communications Jammed . | . . . Distress Signals . | . . . Times Spotted 49 | . 24 25 Peak Tracking Total 19 | . 3 19 Tactical Retreats 3 | . 3 . Traps | -11 -10 -10 ------- Run | Scr Mat Min Traps Triggered 5 | . 5 . Indirectly . | . . . Trap Hack Attempts . | . . . Triggered . | . . . Disarmed . | . . . Reprogrammed . | . . . Reused . | . . . Traps Extracted . | . . . Installed . | . . . Triggered 2 | . 2 . Machines | -11 -10 -10 ---------- Run | Scr Mat Min Machines Disabled 3 | . 3 . Max in Single Turn 1 | . 1 . Machines Sabotaged . | . . . Garrisons Compromised . | . . . Overloaded Fab Kills . | . . . Fab Network Shutdowns . | . . . Hacking | -11 -10 -10 --------- Run | Scr Mat Min Machines Accessed 7 | . 7 . Terminals 5 | . 5 . Fabricators . | . . . Repair Stations 1 | . 1 . Recycling Units 1 | . 1 . Scanalyzers . | . . . Garrison Access . | . . . Total Hacks 14 | . 14 . Successful 9 | . 9 . Failed 5 | . 5 . Catastrophic . | . . . Database Lockouts . | . . . Manual 4 | . 4 . Terminals 9 | . 9 . Fabricators . | . . . Repair Stations 4 | . 4 . Recycling Units 1 | . 1 . Scanalyzers . | . . . Garrison Access . | . . . Terminal Hacks 3 | . 3 . Record 1 | . 1 . Alert Level 1 | . 1 . Zone Layout 1 | . 1 . Fabricator Hacks . | . . . Repair Station Hacks 3 | . 3 . Scan Component 2 | . 2 . Repair 1 | . 1 . Recycling Unit Hacks 1 | . 1 . Report Inventory 1 | . 1 . Scanalyzer . | . . . Garrison Access Hacks . | . . . Unauthorized Hacks 2 | . 2 . Terminals 2 | . 2 . Track 1 | . 1 . Botnet 1 | . 1 . Fabricators . | . . . Repair Stations . | . . . Recycling Units . | . . . Scanalyzers . | . . . Garrison Access . | . . . Data Cores Recovered . | . . . Used . | . . . Hacking Detections 5 | . 5 . Full Trace Events 1 | . 1 . Feedback Events . | . . . Feedback Blocked . | . . . Robot Schematics Acquired . | . . . Robots Built . | . . . Matter . | . . . Time . | . . . Total Robot Build Rating . | . . . Part Schematics Acquired . | . . . Parts Built . | . . . Matter . | . . . Time . | . . . Total Part Build Rating . | . . . Parts Repaired 1 | . 1 . Time 36 | . 36 . Parts Recycled . | . . . Recycled Matter . | . . . Retrieved Matter . | . . . Retrieved Components . | . . . Parts Scanalyzed . | . . . Part Schematics Acquired . | . . . Parts Damaged . | . . . Bothacking | -11 -10 -10 ------------ Run | Scr Mat Min Used RIF Installer . | . . . Robots Hacked . | . . . Non-combat . | . . . Combat . | . . . Robot Hacks Applied . | . . . Relay Couplers Released . | . . . Robots Rewired . | . . . Allies Hacked . | . . . Hacks Repelled . | . . . Allies | -11 -10 -10 -------- Run | Scr Mat Min Total Allies . | . . . Largest Group . | . . . Highest-Rated Group . | . . . Highest-Rated Ally . | . . . Total Orders . | . . . Ally Attacks . | . . . Total Damage . | . . . Kills . | . . . Allies Corrupted . | . . . Allies Melted . | . . . Intel | -11 -10 -10 ------- Run | Scr Mat Min Robot Analysis Total . | . . . Derelict Logs Recovered 1 | . . 1 Drone Launches . | . . . Drone Recoveries . | . . . Exploration | -11 -10 -10 ------------- Run | Scr Mat Min Turns Passed 1556 | 86 1364 106 Spaces Moved 925 | 58 784 83 Core 23 | 8 15 . Treads 373 | 26 347 . Legs . | . . . Wheels 529 | 24 422 83 Hover . | . . . Flight . | . . . Fastest Speed 50 | 50 80 110 Average Speed 136 | 111 141 110 Slowest Speed 450 | 160 450 110 Overloaded Moves . | . . . Propulsion Burnouts . | . . . Robots Hopped . | . . . Cave-ins Triggered . | . . . Exploration Rate (%) 40 | 4 93 24 Regions Visited 2 Branch Regions 1 Pre-discovered Areas . | . . . Known Exits Taken . | . . . Unknown Exits Taken 2 | 1 1 . Scrap Searched . | . . . Spaces Dug . | . . . Terrain Destroyed 19 | . 2 17 Melee . | . . . Projectile . | . . . AOE 19 | . 2 17 Terrain Rammed . | . . . Walls Destroyed . | . . . Machines Disabled . | . . . Actions | -11 -10 -10 --------- Run | Scr Mat Min Total 1076 | 77 909 90 Wait 14 | . 14 . Move 923 | 57 783 83 Hop . | . . . Pick Up 29 | 10 19 . Fast Attach . | . . . Attach 15 | 6 9 . Detach . | . . . Swap 11 | 3 5 3 Drop 6 | 1 5 . Fire 77 | . 73 4 Melee . | . . . Ram 1 | . 1 . Kick . | . . . Crush . | . . . Escape Stasis . | . . . Rewire . | . . . Trap . | . . . Miscellaneous . | . . . Route ------- -11/Scrapyard -10/Materials (discovered 5 exits: [*Mat x3] / [*Min x2]) -10/Mines (discovered 1 exit: Exi) History --------- Turn | Location | Event 41 | -11/Scrapyard | Discovered new exit (range 16) 87 | -11/Scrapyard | Entered Materials 191 | -10/Materials | Discovered new exit (range 16) 318 | -10/Materials | Build established: Mutant 574 | -10/Materials | Repaired Broken Lgt. Treads 650 | -10/Materials | Discovered new exit (range 7) 677 | -10/Materials | Core integrity fell below 50% 726 | -10/Materials | Discovered new exit (range 3) 845 | -10/Materials | Discovered new exit (range 13) 888 | -10/Materials | Discovered new exit (range 16) 1451 | -10/Materials | Entered Mines 1494 | -10/Mines | Assembled infested the area 1516 | -10/Mines | Core integrity fell below 20% 1534 | -10/Mines | Identified exit to Exiles 1557 | -10/Mines | Destroyed by S-10 Pest with Light Assault Rifle Last Messages --------------- Slammed into U-05 Engineer. Triggered EMP Trap. A bubble of electromagnetic force engulfs the area. Door malfunctions. EMP Trap short circuited. A bubble of electromagnetic force engulfs the area. Door malfunctions. LOCATION=UNKNOWN GOAL=ESCAPE Something is scanning the area. S-10 Pest destroyed. ALERT: Infestation in the mines, dispatching Demolisher response squad. Ion Engine destroyed. C-30 ARC bursts open, deploying its payload. D-53 Grenadier unfolds itself. T-07 Excavator destroyed. as-30697 destroyed. as-53155 destroyed. Grenade Launcher destroyed. Acquired derelict log, extracted data. Map ----- +----------------------------------------------------+ | | | | | | | | | | | | | | | | | | | | | | | | | | | ????????????????????????????????? | | ????????????????????????????????? | | ????????????????????????????????? | | ????????????????????????????????? | | ??????????????????????????????### | | ??????????####????????????????# | | ?????????# ##???????????????# | | ???????## ##?????????????## | | ???????# ###??????????## | | ???????# ##?????????# | | ???????# ????????# | | ??????## ????????# | | ????### @""" ???????# ## | | ???## """ #???????# #? | | ??## """ #????????# #? | | ??# ## ???????????# #? | | ??# ##?????????????# #? | | ??## ##??????????????# #? | | ???## ss ##?????#####????## ## | | ????###s ##?????## ###### # | | ???#### ###?????## $ | | ??# #???????# #### | | ??# ### #######?# ##??# | | ??????# #?# ##??# | | ??????# #?# ### | | ??????###### #?# # | | ???????????# #?# ## % | | ???????????# ### ## | | ???????????# #?### | | ???????????# ##???# | | ???????????####### #?#### | | ?????????????????#### #?# | | ????????????????????## ##?# ## | | ?????????????????????####??# ## | | ???????????????????????????# ## | | ???????????????????????????# #### | | ???????????????????????????# #??? | +----------------------------------------------------+ Best States ------------- Heat Dissipation 25 Energy Generation 10 Energy Capacity 250 Matter Stores 274 Matter Capacity 300 Sight Range 16 Terrain Scan Density 10 Evasion (%) 44 Recoil Reduction 1 Item Schematics ----------------- None Robot Schematics ------------------ None Fabricated ------------ Nothing Alien Tech Used ----------------- None Achievements -------------- True Hacker Challenges ------------ None Game ------ Seed VortexGodCleaver Manual? 0 Play Time 00:19:48 Cumulative 6.0 hours Start 2021.11.16 @ 19:43:36 End 2021.11.17 @ 22:11:13 Sessions 2 Manual Loads 0 Difficulty Rogue Special Mode None Game No. 10 Rogue 10 Adventurer 0 Explorer 0 Win Type - Total 0 Types 0/0/0/0/0/0/0/0/0 Lore% 13 Gallery% 11 Achievement% 12 Wizard Run 0 Options --------- ASCII 0 Keyboard 0 Movement Mouse Keybinds 0 Fullscreen 0 Font 16/SmallcapsGlow Map View 76x50 Tactical HUD 0 Map Filters NONE Filters NONE Steam 1 RUN: a812d6cb-d118-4d27-9042-8fea0aca7fa8